bitfinex/quotes_ETHUSD_20250517
["timestamp","ask_amount","ask_price","bid_price","bid_amount"]
[1747463771600,4.02053646,2487.3,2487.1,25.021]
[1747463772738,5.44025574,2487.4,2487.1,25.021]
[1747463772920,4.02045594,2487.3,2487.1,25.021]
[1747463773829,5.44051564,2487.2,2487.1,17.354]
[1747463774139,5.44051564,2487.2,2487.1,25.022]
[1747463774347,1.41993025,2487.2,2487.1,25.022]
[1747463774554,1.41449571,2487.2,2487.1,25.022]
[1747463776943,8.0,2487.4,2487.2,4.77853685]
[1747463777243,5.43946498,2487.9,2487.4,4.02022683]
[1747463777449,0.8149,2488.4,2487.2,0.758]
[1747463777650,4.0194689,2487.9,2487.4,4.02017732]
[1747463777821,4.01971906,2487.8,2487.3,7.7983679]
[1747463779138,4.01961572,2487.8,2487.3,3.77802]
[1747463779446,5.4397247,2487.7,2487.3,3.77802]
[1747463779648,5.4397247,2487.7,2487.4,7.664]
[1747463782952,5.43997125,2487.6,2487.5,7.663]
[1747463783260,9.41993025,2487.6,2487.5,7.663]
[1747463783447,13.43986914,2487.6,2487.5,7.663]
[1747463784525,13.43691822,2487.6,2487.5,7.663]
[1747463784733,12.01993889,2487.6,2487.5,7.663]
[1747463784933,1.41993025,2487.7,2487.5,7.663]
[1747463785262,9.41993025,2487.7,2487.5,7.663]
[1747463785551,8.0,2487.7,2487.5,7.663]
[1747463785794,9.41993025,2488.0,2487.6,1.5815]
[1747463786260,12.01916914,2488.1,2487.6,5.60135405]
[1747463786425,4.01934299,2488.0,2487.6,1.5815]
[1747463786754,4.01934299,2488.0,2487.7,1.32645096]
[1747463787454,12.01913946,2488.1,2487.6,1.5815]
[1747463787455,4.0197773,2487.7,2487.6,0.8152]
[1747463787658,4.0197773,2487.7,2487.6,7.664]
[1747463788629,1.41993025,2487.8,2487.6,7.664]
[1747463788834,9.41993025,2488.0,2487.6,7.664]
[1747463789559,13.43934402,2488.0,2487.6,7.664]
[1747463789728,13.4314759,2488.0,2487.6,8.90766913]
[1747463791478,9.41206213,2488.0,2487.6,8.90766913]
[1747463791788,4.01997981,2487.6,2487.4,2.3526]
[1747463791971,4.01997981,2487.6,2487.5,7.664]
[1747463792783,4.0201005,2487.5,2487.4,1.6]
[1747463792987,4.0201005,2487.5,2487.4,7.664]
[1747463794980,4.0201005,2487.5,2487.1,25.018]
[1747463794981,4.02058539,2487.2,2487.1,25.018]
[1747463795290,6.75071705,2487.2,2487.1,25.018]
[1747463795649,14.75071705,2487.2,2487.1,25.018]
[1747463798610,25.04803151,2487.2,2487.1,17.354]
[1747463799598,22.31789985,2487.2,2487.1,17.354]
[1747463799755,25.04803151,2487.2,2487.1,17.354]
[1747463799955,25.03997127,2487.2,2487.1,17.354]
[1747463802213,23.16285681,2487.2,2487.1,17.354]
[1747463806534,4.02124415,2486.8,2486.4,18.1156]
[1747463806687,4.02124415,2486.8,2486.5,7.665]
[1747463807941,8.0,2486.9,2486.5,7.665]
[1747463808233,4.02097764,2487.0,2486.7,4.02138823]
[1747463808234,8.0,2487.0,2486.7,4.02138823]
[1747463808393,11.68253247,2487.3,2486.9,0.8183]
[1747463808588,7.662,2487.3,2487.0,7.662]
[1747463808823,4.02074705,2487.1,2487.0,7.662]
[1747463809006,12.02066166,2487.2,2487.0,7.662]
[1747463809338,8.0,2487.2,2487.0,7.662]
[1747463809524,12.02058707,2487.2,2487.0,7.662]
[1747463810020,12.01351247,2487.2,2487.0,7.662]
[1747463810733,4.02074705,2487.1,2487.0,7.662]
[1747463811606,7.58397871,2487.1,2487.0,7.662]
[1747463811920,4.02135084,2486.8,2486.5,0.8183]
[1747463812113,4.02135084,2486.8,2486.6,7.662]
[1747463812632,4.02090872,2487.0,2486.6,7.662]
[1747463813134,7.58403247,2487.1,2486.6,4.02152293]
[1747463813336,7.58403247,2487.1,2486.7,7.662]
[1747463813539,7.58403247,2487.1,2486.7,8.91218229]
[1747463814211,4.02080081,2487.1,2486.7,8.91218229]
[1747463814800,4.0209192,2487.0,2486.7,8.91218229]
[1747463815000,4.01309911,2487.0,2486.7,8.91218229]
[1747463815540,1.42256923,2487.1,2486.7,8.91218229]
[1747463815698,9.42256923,2487.3,2486.8,1.66461823]
[1747463816111,13.44314475,2487.3,2486.8,5.68581879]
[1747463816646,4.02092994,2487.0,2486.8,1.66461823]
[1747463817135,5.44342122,2487.1,2486.8,1.66461823]
[1747463817319,4.02085199,2487.1,2486.8,1.66461823]
[1747463817526,4.02094316,2487.0,2486.9,7.662]
[1747463820243,4.02111197,2486.9,2486.6,0.8153]
[1747463820544,4.02111197,2486.9,2486.7,7.662]
[1747463820747,4.02111197,2486.9,2486.6,0.8153]
[1747463821052,4.02111197,2486.9,2486.8,7.662]
[1747463821238,4.02111197,2486.9,2486.6,0.8153]
[1747463821549,4.02132393,2486.8,2486.7,7.662]
[1747463821951,4.02111197,2486.9,2486.7,8.0463718]
[1747463821952,4.02115202,2486.9,2486.7,8.0463718]
[1747463822442,4.0212321,2486.8,2486.7,8.0463718]
[1747463822648,4.02116996,2486.9,2486.7,8.0463718]
[1747463822850,4.02098671,2487.0,2486.7,8.0463718]
[1747463823050,0.7619,2487.2,2486.7,8.0463718]
[1747463823051,2.7311779,2487.3,2486.7,9.25317709]
[1747463823226,19.68165485,2487.2,2486.8,0.8311]
[1747463823429,19.68165485,2487.2,2486.8,1.2154718]
[1747463823627,4.02084487,2487.1,2486.8,1.2154718]
[1747463823811,19.68165485,2487.2,2486.8,1.2154718]
[1747463823812,4.0210704,2486.9,2486.8,0.3843718]
[1747463824013,4.8412704,2486.9,2486.8,0.3843718]
[1747463824251,6.00060917,2486.9,2486.8,8.0463718]
[1747463824952,6.00060917,2486.9,2486.8,7.662]
[1747463825137,13.99295219,2486.9,2486.8,7.662]
[1747463825336,12.02171727,2486.5,2486.4,25.50129809]
[1747463825553,14.75289517,2486.5,2486.4,25.50129809]
[1747463826563,8.0,2486.5,2486.4,25.025]
[1747463826767,12.02171727,2486.5,2486.4,27.63863622]
[1747463827064,12.02171727,2486.5,2486.4,25.025]
[1747463827222,12.02171727,2486.5,2486.4,17.363]
[1747463827423,15.52119517,2486.5,2486.4,25.025]
[1747463829227,15.52119517,2486.5,2486.4,7.662]
[1747463830331,15.51492009,2486.5,2486.4,7.662]
[1747463830530,17.46856788,2486.5,2486.4,7.662]
[1747463832836,12.01544219,2486.5,2486.4,7.662]
[1747463833043,19.67744219,2486.5,2486.4,7.662]
[1747463833766,4.02204078,2486.3,2486.2,0.8148]
[1747463833969,4.02252959,2486.0,2485.8,0.8148]
[1747463834157,4.02252959,2486.0,2485.9,7.664]
[1747463834868,4.02252959,2486.0,2485.8,2.63278]
[1747463835068,4.02259977,2486.0,2485.9,7.664]
[1747463835273,15.5740048,2486.4,2486.0,0.00810227]
[1747463835274,4.02228082,2486.2,2486.0,0.00810227]
[1747463835572,4.02212902,2486.3,2486.1,0.8148]
[1747463835867,12.02196623,2486.4,2486.1,0.8148]
[1747463836465,4.02140923,2486.7,2486.2,4.83692088]
[1747463836777,8.0,2486.7,2486.2,0.8148]
[1747463837083,4.02204078,2486.3,2486.2,0.8148]
[1747463837238,4.02204078,2486.3,2486.2,8.4788]
[1747463837440,4.02195707,2486.4,2486.2,8.4788]
[1747463837748,1.42322279,2486.5,2486.2,8.4788]
[1747463838558,5.44501886,2486.5,2486.2,8.4788]
[1747463838760,5.44501886,2486.5,2486.2,9.99278895]
[1747463838971,4.02172621,2486.5,2486.2,9.99278895]
[1747463840377,17.08522279,2486.7,2486.2,2.32878895]
[1747463840673,4.02228141,2486.2,2486.0,0.77110227]
[1747463840870,4.02236434,2486.1,2486.0,0.00810227]
[1747463841080,4.02227678,2486.2,2486.0,7.67010227]
[1747463841660,4.02227678,2486.2,2486.0,8.5134125]
[1747463841863,4.02236434,2486.1,2486.0,8.5134125]
[1747463842555,4.02227326,2486.2,2486.0,8.5134125]
[1747463844085,4.02236434,2486.1,2486.0,8.5134125]
[1747463844285,4.02236434,2486.1,2486.0,7.67010227]
[1747463844486,5.44558713,2486.1,2486.0,7.67010227]
[1747463845471,5.43956121,2486.1,2486.0,7.67010227]
[1747463846159,1.42322279,2486.1,2486.0,7.67010227]
[1747463846590,5.44558713,2486.1,2486.0,7.67010227]
[1747463848293,1.42322279,2486.1,2486.0,7.67010227]
[1747463848483,4.0222939,2486.2,2486.0,7.67010227]
[1747463854426,5.445339,2486.3,2486.0,7.67010227]
[1747463855229,1.42322279,2486.3,2486.0,7.67010227]
[1747463855395,5.44527909,2486.3,2486.1,7.662]
[1747463855595,5.43942428,2486.3,2486.1,7.662]
[1747463856691,1.41736798,2486.3,2486.1,7.662]
[1747463856994,5.43943883,2486.3,2486.1,7.662]
[1747463857406,4.02220255,2486.2,2486.1,7.662]
[1747463858220,4.02220255,2486.2,2486.0,0.00810227]
[1747463858533,1.42322279,2486.1,2486.0,0.00810227]
[1747463858733,6.22418713,2486.1,2486.0,7.67010227]
[1747463858894,14.22418713,2486.1,2486.0,7.67010227]
[1747463859427,14.22418713,2486.1,2486.0,0.00810227]
[1747463859627,16.65191225,2486.1,2486.0,0.00810227]
[1747463860733,16.64610747,2486.1,2486.0,0.00810227]
[1747463864926,23.52750747,2486.1,2486.0,0.00810227]
[1747463865133,21.09978235,2486.1,2486.0,0.00810227]
[1747463865941,21.09299894,2486.1,2486.0,0.00810227]
[1747463866149,13.43299894,2486.1,2486.0,0.00810227]
[1747463866343,21.09299894,2486.1,2486.0,0.00810227]
[1747463868014,8.0,2486.1,2486.0,0.00810227]
[1747463868242,12.02236434,2486.1,2486.0,0.78660227]
[1747463868441,8.0,2486.1,2486.0,0.78660227]
[1747463868632,8.0,2486.2,2486.0,1.6315625]
[1747463869649,4.02236434,2486.1,2486.0,1.6315625]
[1747463869954,4.02236434,2486.1,2486.0,0.78660227]
[1747463870254,4.02236434,2486.1,2486.0,0.00810227]
[1747463870458,5.44558713,2486.1,2486.0,0.00810227]
[1747463870823,5.43773002,2486.1,2486.0,7.66710227]
[1747463871219,4.02225005,2486.2,2486.0,7.66710227]
[1747463871462,4.02225005,2486.2,2486.1,0.76671023]
[1747463871760,4.02236434,2486.1,2486.0,8.44560227]
[1747463875164,4.02227853,2486.2,2486.0,8.44560227]
[1747463875330,4.02236434,2486.1,2486.0,8.44560227]
[1747463876666,4.02231683,2486.2,2486.0,8.44560227]
[1747463876869,4.02236434,2486.1,2486.0,0.78660227]
[1747463877076,4.02236434,2486.1,2486.0,8.44560227]
[1747463877461,5.44558713,2486.1,2486.0,0.00810227]
[1747463877663,5.44558713,2486.1,2486.0,7.66710227]
[1747463877863,4.02236434,2486.1,2486.0,7.66710227]
[1747463878358,5.44558713,2486.1,2486.0,7.66710227]
[1747463878875,5.44558713,2486.1,2486.0,0.00810227]
[1747463879177,5.44558713,2486.1,2486.0,7.66710227]
[1747463879974,12.02230778,2486.2,2486.1,0.8189]
[1747463880178,4.02236434,2486.1,2486.0,7.66710227]
[1747463880578,5.44558713,2486.1,2486.0,7.66710227]
[1747463880982,5.43929003,2486.1,2486.0,0.00810227]
[1747463881211,5.43929003,2486.1,2486.0,7.66710227]
[1747463882676,16.01554981,2486.1,2486.0,0.00810227]
[1747463885290,14.26939003,2486.1,2486.0,0.00810227]
[1747463889302,12.84616724,2486.1,2486.0,0.00810227]
[1747463889503,14.26939003,2486.1,2486.0,0.00810227]
[1747463891233,14.26299687,2486.1,2486.0,0.00810227]
[1747463892839,21.91899687,2486.1,2486.0,0.00810227]
[1747463893340,24.54284807,2486.1,2486.0,0.00810227]
[1747463894236,26.51607086,2486.1,2486.0,0.00810227]
[1747463894437,22.90310186,2486.1,2485.3,17.371]
[1747463894621,13.44672001,2485.4,2485.3,25.031]
[1747463895235,13.44672001,2485.4,2485.3,17.371]
[1747463895438,12.02349722,2485.4,2485.3,17.371]
[1747463895638,13.44672001,2485.4,2485.3,17.371]
[1747463895836,16.03711858,2485.4,2485.3,17.371]
[1747463896346,13.43930418,2485.4,2485.3,17.371]
[1747463896914,12.02365911,2485.3,2485.2,8.13629809]
[1747463897432,12.02365911,2485.3,2485.2,7.66]
[1747463901421,12.01875292,2485.3,2485.2,7.66]
[1747463902527,4.02430681,2484.9,2484.8,7.656]
[1747463902748,8.0,2485.3,2484.8,7.656]
[1747463902938,13.44729992,2485.1,2484.9,0.7651]
[1747463903471,4.02429335,2485.0,2484.9,7.657]
[1747463903649,12.02429335,2485.0,2484.8,0.7651]
[1747463903848,13.4475296,2484.9,2484.8,7.657]
[1747463905233,4.02429396,2485.0,2484.8,8.4221]
[1747463905425,1.42322279,2485.1,2484.8,8.4221]
[1747463905625,13.1029731,2485.3,2484.8,8.4221]
[1747463905855,5.4469731,2485.3,2484.8,12.44648533]
[1747463906059,5.4469731,2485.3,2484.9,1.24464853]
[1747463906432,5.44063297,2485.3,2484.9,1.24464853]
[1747463906642,4.02384965,2485.2,2484.9,1.24464853]
[1747463907470,13.44062164,2485.3,2484.9,1.24464853]
[1747463909233,4.0238415,2485.2,2484.9,1.24464853]
[1747463909429,1.42322279,2485.5,2485.1,0.809]
[1747463909770,8.0,2485.4,2485.1,0.809]
[1747463910061,6.19661635,2485.8,2485.2,0.809]
[1747463910262,15.27483914,2485.8,2485.4,0.809]
[1747463910462,19.29779184,2485.8,2485.4,2.05795724]
[1747463910830,4.02304729,2485.7,2485.4,2.05795724]
[1747463911657,4.01604874,2485.7,2485.4,2.05795724]
[1747463912437,19.29777546,2485.8,2485.4,2.05795724]
[1747463913053,4.02333534,2485.5,2485.4,2.05795724]
[1747463913263,4.02333534,2485.5,2485.4,8.466]
[1747463913581,12.02333534,2485.5,2485.4,7.657]
[1747463914582,4.02372134,2485.3,2485.1,0.7616]
[1747463914882,5.44694413,2485.3,2485.2,7.657]
[1747463916487,5.44694413,2485.3,2484.6,17.373]
[1747463916488,1.42322279,2485.3,2484.6,17.373]
[1747463916782,4.02382102,2485.2,2484.8,0.7616]
[1747463916953,5.44690577,2485.3,2484.8,4.78600806]
[1747463917152,1.42322279,2485.3,2484.8,4.78598387]
[1747463917552,5.44689304,2485.3,2484.8,4.78598387]
[1747463918392,12.02358506,2485.4,2485.1,0.8241]
[1747463918680,4.02382102,2485.2,2484.8,1.6]
[1747463918988,4.02430681,2484.9,2484.7,0.8241]
[1747463919296,12.02430681,2484.9,2484.8,7.657]
[1747463919455,12.57430681,2484.9,2484.8,7.657]
[1747463919897,20.22830681,2484.9,2484.8,7.657]
[1747463921720,20.5277986,2484.9,2484.8,7.657]
[1747463921874,23.20490816,2484.9,2484.8,7.657]
[1747463922074,22.65490816,2484.9,2484.8,7.657]
[1747463923390,23.20490816,2484.9,2484.8,7.657]
[1747463924073,19.9777986,2484.9,2484.8,7.657]
[1747463925002,4.02430681,2484.9,2484.8,7.657]
[1747463925204,1.42322279,2485.2,2484.8,7.657]
[1747463925377,9.07722279,2485.4,2484.9,4.84839206]
[1747463925696,9.07722279,2485.4,2485.0,1.25456349]
[1747463925697,4.02349783,2485.4,2485.0,1.25456349]
[1747463926302,1.42322279,2485.3,2484.9,0.8241]
[1747463926501,5.44698013,2485.3,2484.9,0.8241]
[1747463926699,9.42322279,2485.4,2485.0,4.02406572]
[1747463927009,9.42322279,2485.4,2484.9,4.84835988]
[1747463927192,9.41769419,2485.4,2485.0,4.02409768]
[1747463927394,5.44119229,2485.4,2485.1,0.48481977]
[1747463927593,9.41769419,2485.4,2485.1,0.48481977]
[1747463927817,13.44121618,2485.4,2485.1,0.48481977]
[1747463928701,9.41769419,2485.4,2485.1,0.48481977]
[1747463929128,13.4412277,2485.4,2485.1,0.48481977]
[1747463930316,5.2548619,2485.6,2485.2,4.02379939]
[1747463930521,6.67808469,2485.6,2485.4,0.7533]
[1747463931004,10.70125899,2485.6,2485.4,0.7533]
[1747463931698,5.2548619,2485.6,2485.4,4.77669323]
[1747463931881,1.42322279,2486.1,2485.7,4.02297068]
[1747463932085,13.43814157,2486.1,2485.8,7.653]
[1747463932616,4.02253939,2486.0,2485.8,7.653]
[1747463934623,13.43821614,2486.1,2485.5,22.15356743]
[1747463934784,6.01274435,2486.6,2486.0,0.8093]
[1747463934785,1.42322279,2486.5,2486.0,0.8093]
[1747463934991,1.42322279,2486.5,2486.0,4.8720077]
[1747463935230,13.44502489,2486.5,2486.0,0.8093]
[1747463935414,12.02189285,2486.4,2486.0,0.8093]
[1747463936656,1.42322279,2486.3,2486.0,0.8093]
[1747463936954,4.0227945,2485.9,2485.7,0.8093]
[1747463937237,4.02256932,2486.0,2485.8,7.651]
[1747463937465,1.42322279,2485.9,2485.5,17.377]
[1747463937741,1.42322279,2485.7,2485.6,7.651]
[1747463938242,5.44623441,2485.7,2485.6,7.651]
[1747463938937,4.02317347,2485.6,2485.5,17.377]
[1747463939137,4.02317347,2485.6,2485.5,25.028]
[1747463940208,4.02308857,2485.7,2485.5,25.028]
[1747463940542,4.02308857,2485.7,2485.5,27.61301]
[1747463940954,5.44603229,2485.9,2485.5,27.61301]
[1747463941571,4.02286786,2485.8,2485.5,27.61301]
[1747463942293,5.44599256,2485.9,2485.5,27.61301]
[1747463942493,4.02241085,2486.1,2485.5,31.6362903]
[1747463942494,1.42322279,2486.1,2485.5,31.6362903]
[1747463942684,5.44569541,2486.1,2485.6,8.0395795]
[1747463942862,4.02253552,2486.0,2485.6,4.01643903]
[1747463943799,5.44565114,2486.1,2485.6,8.03951541]
[1747463944967,8.0,2486.2,2485.7,4.02301162]
[1747463945167,4.02244329,2486.1,2485.6,8.03948345]
[1747463945403,9.07322279,2486.3,2485.7,3.70907743]
[1747463945602,13.09535977,2486.3,2485.8,4.02282541]
[1747463946298,12.79368042,2486.5,2485.9,4.79321043]
[1747463946299,4.02195004,2486.4,2485.9,4.79321043]
[1747463946504,4.02195004,2486.4,2486.0,7.651]
[1747463947298,4.01709988,2486.4,2486.0,7.651]
[1747463947465,4.02197107,2486.4,2486.0,9.06810267]
[1747463948099,5.44498823,2486.5,2486.1,0.7706]
[1747463948573,1.42322279,2486.9,2486.4,0.7706]
[1747463948771,4.02093,2487.0,2486.6,0.7706]
[1747463948972,1.42322279,2487.1,2486.6,0.7706]
[1747463949309,4.02134737,2486.8,2486.7,7.65]
[1747463950001,4.0212321,2486.8,2486.7,7.65]
[1747463950899,5.44431852,2486.9,2486.7,7.649]
[1747463952107,5.44431852,2486.9,2486.8,7.649]
[1747463952410,9.42322279,2487.1,2486.9,0.00823035]
[1747463953109,5.44397621,2487.1,2486.9,0.00823035]
[1747463953410,6.01100405,2487.6,2486.9,0.00823035]
[1747463953411,1.42322279,2487.5,2487.0,0.7994]
[1747463953610,4.02029623,2487.4,2487.0,0.7994]
[1747463954217,5.44351902,2487.4,2487.0,0.7994]
[1747463955619,4.02042375,2487.3,2487.0,0.7994]
[1747463955979,4.02042375,2487.3,2486.9,0.49305012]
[1747463955980,4.02074705,2487.1,2486.9,0.00823035]
[1747463956233,4.02090872,2487.0,2486.9,0.00823035]
[1747463956514,5.44389124,2487.2,2486.9,7.65723035]
[1747463956815,1.42322279,2487.2,2486.9,7.65723035]
[1747463956975,4.02076201,2487.1,2486.9,7.65723035]
[1747463957418,5.44386606,2487.2,2486.9,7.65723035]
[1747463957613,4.02064327,2487.2,2486.9,7.65723035]
[1747463958211,4.02017833,2487.5,2487.0,4.83369427]
[1747463958387,5.44330643,2487.6,2487.1,4.06081426]
[1747463958582,4.02014395,2487.5,2487.2,0.8128]
[1747463958983,5.44317272,2487.6,2487.2,0.8128]
[1747463959184,4.02027208,2487.4,2487.2,0.8128]
[1747463959394,4.0201541,2487.5,2487.2,0.8128]
[1747463961824,5.44320779,2487.6,2487.2,0.8128]
[1747463962230,1.42322279,2487.4,2487.3,7.644]
[1747463962534,1.41567788,2487.4,2487.3,7.644]
[1747463962737,9.41567788,2487.4,2486.9,0.00823035]
[1747463963052,5.44409958,2487.1,2487.0,7.643]
[1747463963202,1.42322279,2487.1,2487.0,7.643]
[1747463963635,4.02075047,2487.1,2486.9,0.00823035]
[1747463963839,4.02064545,2487.2,2487.0,7.643]
[1747463964541,4.02074705,2487.1,2487.0,7.643]
[1747463964742,4.02064491,2487.2,2487.0,7.643]
[1747463966159,4.02074705,2487.1,2486.9,0.00823035]
[1747463966361,4.02090872,2487.0,2486.9,0.00823035]
[1747463966509,4.02090872,2487.0,2486.9,7.65123035]
[1747463967412,5.04785658,2487.0,2486.9,7.65123035]
[1747463967609,5.04237701,2487.0,2486.9,7.65123035]
[1747463968240,13.04237701,2487.0,2486.9,7.65123035]
[1747463969431,13.04237701,2487.0,2486.9,0.00823035]
[1747463969640,13.04237701,2487.0,2486.9,7.65123035]
[1747463971749,8.0,2487.0,2486.9,7.65123035]
[1747463972552,12.02090872,2487.0,2486.9,7.65123035]
[1747463974136,12.80790872,2487.0,2486.9,7.65223035]
[1747463974338,14.23113151,2487.0,2486.9,7.65223035]
[1747463974654,15.5969941,2487.0,2486.9,0.00823035]
[1747463974812,18.46529052,2487.0,2486.9,0.00823035]
[1747463975215,19.77523958,2487.0,2486.9,0.00823035]
[1747463975443,4.02204078,2486.3,2486.1,0.47629809]
[1747463975640,12.02220255,2486.2,2486.1,0.47629809]
[1747463976024,12.57220255,2486.2,2486.1,0.47629809]
[1747463976217,13.98425836,2486.2,2486.1,0.47629809]
[1747463976629,4.02284978,2485.8,2485.4,0.8025]
[1747463976822,4.02284978,2485.8,2485.7,25.008]
[1747463977823,4.01480254,2485.8,2485.7,25.008]
[1747463978255,10.73317185,2486.2,2485.7,25.008]
[1747463978558,4.02220815,2486.2,2485.8,0.8218]
[1747463979118,4.02209522,2486.3,2485.8,0.8218]
[1747463979320,4.02258176,2486.0,2485.8,0.8218]
[1747463980125,4.02244679,2486.1,2485.8,0.8218]
[1747463980760,4.02262433,2486.0,2485.8,0.8218]
[1747463982560,4.02243952,2486.1,2485.8,0.8218]
[1747463982960,4.02231374,2486.2,2485.8,4.05717582]
[1747463983132,4.02223695,2486.2,2485.8,4.05717582]
[1747463983854,11.66488439,2486.4,2485.9,4.02265421]
[1747463983855,4.02188439,2486.4,2485.9,4.02265421]
[1747463984029,4.02188439,2486.4,2485.8,4.05717582]
[1747463984030,0.7763,2486.6,2485.8,4.05717582]
[1747463984229,0.7763,2486.6,2485.9,7.645]
[1747463984230,10.73317185,2486.5,2485.9,7.645]
[1747463984442,4.02240407,2486.1,2485.8,4.05717582]
[1747463984757,4.02240407,2486.1,2485.9,7.645]
[1747463985269,4.02229209,2486.2,2485.9,7.645]
[1747463985639,4.02207521,2486.3,2486.0,7.645]
[1747463985840,8.0,2486.3,2486.0,7.645]
[1747463986168,4.02235433,2486.2,2486.0,8.81521758]
[1747463986356,4.02235433,2486.2,2486.0,7.645]
[1747463986555,4.02235433,2486.2,2485.8,4.05717582]
[1747463986751,4.02235433,2486.2,2486.1,7.645]
[1747463991259,4.02274541,2485.9,2485.7,17.364]
[1747463991580,4.02261271,2486.0,2485.8,7.642]
[1747463991870,4.02261271,2486.0,2485.8,10.22176]
[1747463992974,4.0155211,2486.0,2485.8,10.22176]
[1747463994177,4.0155211,2486.0,2485.7,17.364]
[1747463994373,4.02268796,2485.9,2485.8,7.642]
[1747463995254,4.02268796,2485.9,2485.7,17.364]
[1747463995455,4.02268796,2485.9,2485.8,7.642]
[1747463995778,4.02268796,2485.9,2485.7,17.364]
[1747463996074,4.02268796,2485.9,2485.8,7.643]
[1747463997080,4.02245419,2486.1,2485.8,7.643]
[1747463997244,4.02245419,2486.1,2485.8,10.62517011]
[1747463997654,5.44636071,2486.0,2485.8,10.62517011]
[1747463997884,4.02268796,2485.9,2485.8,7.643]
[1747463998146,4.01495364,2485.8,2485.7,17.364]
[1747463998346,5.43878712,2485.8,2485.7,25.007]
[1747463998985,13.43878712,2485.8,2485.7,17.364]
[1747463999149,15.01047463,2485.8,2485.7,7.643]
[1747463999353,15.76587463,2485.8,2485.7,7.643]
[1747464000997,13.43878712,2485.8,2485.7,7.643]
[1747464001151,9.42383348,2485.8,2485.7,7.643]
[1747464001493,5.44668326,2485.8,2485.7,7.643]
[1747464006898,13.44668326,2485.8,2485.7,7.643]
[1747464007094,9.42383348,2485.8,2485.7,7.643]
[1747464007297,13.08744701,2486.0,2485.7,9.2065]
[1747464007461,13.08744701,2486.0,2485.7,8.4422]
[1747464007658,1.42383348,2485.8,2485.7,8.4422]
[1747464008274,1.41522888,2485.8,2485.7,8.4422]
[1747464009076,5.43807866,2485.8,2485.7,8.4422]
[1747464009273,5.43807866,2485.8,2485.7,7.643]
[1747464009495,8.0,2485.9,2485.7,7.643]
[1747464009667,4.02269195,2485.9,2485.7,7.643]
[1747464010172,4.02275429,2485.9,2485.7,7.643]
[1747464010366,5.44644941,2486.0,2485.7,7.643]
[1747464011074,1.42383348,2486.2,2485.8,4.78606603]
[1747464011276,5.44579069,2486.4,2485.8,0.7633]
[1747464011476,4.02220641,2486.2,2485.8,0.7633]
[1747464011880,4.02220641,2486.2,2485.9,0.38396432]
[1747464013195,13.44581353,2486.4,2485.9,21.77856744]
[1747464013396,13.44581353,2486.4,2485.9,25.32364099]
[1747464013596,4.02204547,2486.3,2485.9,21.30103787]
[1747464013809,4.02204547,2486.3,2485.9,20.91707355]
[1747464015305,4.02204883,2486.3,2485.9,20.91707355]
[1747464015811,4.02204883,2486.3,2486.0,7.643]
[1747464016208,4.02252614,2486.0,2485.9,17.372]
[1747464016375,5.44635962,2486.0,2485.9,25.015]
[1747464019109,13.44635962,2486.0,2485.9,17.372]
[1747464019305,13.44635962,2486.0,2485.9,25.015]
[1747464019911,9.42383348,2486.0,2485.9,25.015]
[1747464020113,12.02252614,2486.0,2485.9,25.015]
[1747464020532,8.0,2486.0,2485.9,25.015]
[1747464020886,4.02236798,2486.1,2485.9,25.015]
[1747464021120,1.42383348,2486.2,2485.9,17.372]
[1747464021289,5.44635962,2486.0,2485.9,17.372]
[1747464021616,5.44635962,2486.0,2485.9,25.011]
[1747464022785,1.42383348,2486.0,2485.9,25.011]
[1747464023094,9.42383348,2486.4,2486.0,4.82665446]
[1747464023419,13.4457276,2486.4,2486.0,0.8042]
[1747464024115,4.02216891,2486.3,2486.0,0.8042]
[1747464024786,4.02226212,2486.2,2486.0,0.8042]
[1747464025819,4.02210951,2486.3,2486.0,0.8042]
[1747464026517,4.02225756,2486.2,2486.0,0.8042]
[1747464027020,4.0221052,2486.3,2486.0,0.8042]
[1747464028096,4.02208632,2486.3,2486.0,0.8042]
[1747464028629,6.27791545,2486.8,2486.1,0.04022022]
[1747464028805,8.0,2486.6,2486.1,4.83058006]
[1747464029001,8.0,2486.6,2486.1,4.79036434]
[1747464029206,4.02160042,2486.6,2486.1,4.79036434]
[1747464029731,4.02172505,2486.5,2486.1,0.768]
[1747464029933,4.02172505,2486.5,2486.2,0.9624343]
[1747464030231,1.42383348,2486.6,2486.2,0.9624343]
[1747464030232,5.44543498,2486.6,2486.2,0.9624343]
[1747464030527,4.02127368,2486.8,2486.4,0.768]
[1747464030731,4.02127368,2486.8,2486.5,7.638]
[1747464032637,4.02115856,2486.9,2486.5,7.638]
[1747464032842,4.02115856,2486.9,2486.5,8.4786]
[1747464033037,4.02091203,2487.0,2486.6,0.7927]
[1747464034337,2.25653348,2487.3,2486.6,0.7927]
[1747464034500,8.0,2487.2,2486.7,0.04020874]
[1747464034700,4.02075575,2487.1,2486.8,17.368]
[1747464035536,5.44490388,2486.9,2486.8,17.368]
[1747464035741,5.44490388,2486.9,2486.8,25.005]
[1747464036238,1.42383348,2486.9,2486.8,25.005]
[1747464036837,1.42383348,2486.9,2486.8,27.58477]
[1747464037040,4.02099089,2487.0,2486.8,27.58477]
[1747464041551,5.44490388,2486.9,2486.8,25.005]
[1747464041749,5.44490388,2486.9,2486.8,25.004]
[1747464041936,5.44490388,2486.9,2486.8,17.368]
[1747464042246,5.44490388,2486.9,2486.8,25.004]
[1747464048732,1.42383348,2486.9,2486.8,25.004]
[1747464049034,7.635,2487.4,2486.8,25.004]
[1747464049035,0.7551,2487.6,2486.8,28.3341]
[1747464049239,0.7551,2487.6,2486.8,32.35527251]
[1747464049240,4.02049794,2487.3,2486.8,32.35527251]
[1747464049441,4.02062787,2487.2,2486.8,28.3341]
[1747464050478,4.02049796,2487.3,2486.8,32.35524731]
[1747464050648,4.02060851,2487.2,2486.9,3.63765556]
[1747464052868,4.02047814,2487.3,2486.9,3.63765556]
[1747464053335,1.42383348,2487.5,2487.0,0.7949]
[1747464053535,12.020338,2487.4,2487.0,0.7949]
[1747464053750,4.02042984,2487.3,2487.0,4.54277423]
[1747464054538,4.02070426,2487.2,2487.1,7.631]
[1747464054940,5.44434204,2487.3,2487.1,7.631]
[1747464056175,4.02058539,2487.2,2487.1,7.631]
[1747464056341,5.44431523,2487.3,2487.1,7.631]